Cogmind - Beta 13 @@@ ROGUE MODE // 2024.05.09 @ 23:11:12 Player: Millea Result: Destroyed by S-43 Plague with Heavy Machine Gun Performance ------------- Evolutions (7) 3500 Regions Visited (24) 4800 Robots Destroyed (388) 1940 Value Destroyed (21958) 21958 Prototype IDs (21) 420 Alien Tech Used (0) 0 Bonus (9533) 9533 TOTAL SCORE: 42151 Bonus ------- High Alert Combat Kills 1573 Follower Combat Kills 2168 Entered Garrisons 2000 Used RIF Installer 4500 Friendly Fire -708 Cogmind --------- Core Integrity 0/1300 Matter 87/300 Energy 50/100 System Corruption 20% Temperature Cool (0) Movement Core (50) Location -3/Garrison Parts ------- > --- POWER (2) -------- (None) > --- PROPULSION (4) --- Combat Linear Gravjet > --- UTILITY (12) ----- Spectral Analyzer Armor Integrity Analyzer Relay Coupler [NC] (33) > --- WEAPON (3) ------- (None) > --- INVENTORY (5) ---- Reinforced Quantum Reactor Compact HERF Cannon Enhanced Nova Cannon Advanced Remote Datajack Peak State ------------ > --- POWER ------------ Improved Fusion Compressor Light Quantum Reactor > --- PROPULSION ------- Armored Medium Treads Armored Medium Treads Improved Heavy Treads > --- UTILITY ---------- Advanced Heat Sink Advanced Heat Sink Huge Storage Unit Spectral Analyzer Improved Particle Charger Quantum Capacitor Relay Coupler [NC] Relay Coupler [Sentry] Relay Coupler [Proto] Relay Coupler [Proto] Relay Coupler [Proto] > --- WEAPON ----------- Dispersion Rifle Heavy Dispersion Rifle Heavy Proton Cannon > --- INVENTORY -------- Light Antimatter Reactor Medium Treads Improved Heat Sink Improved Heat Sink Improved Transmission Jammer Heavy Armor Plating Heavy Armor Plating Improved Thermal Shield EM Disruption Field Advanced Force Field Improved Remote Shield Authchip [Propulsion] Relay Coupler [Specialist] Relay Coupler [Hunter] Advanced Dynamic Insulation System Heavy Proton Cannon Heavy Proton Cannon Heavy Plasma Cannon High-powered Shotgun Heavy Shock Bomb Launcher Heavy Rocket Launcher Improved Remote Datajack [Rating: 148] Favorites ----------- Power Improved Deuterium Engine Engine Improved Deuterium Engine Power Core Light Nuclear Core Reactor Light Antimatter Reactor Propulsion Light Treads Treads Light Treads Leg Aluminum Leg Hover Unit Combat Linear Gravjet Utility Huge Storage Unit Device Advanced Heat Sink Storage Huge Storage Unit Processor Advanced Targeting Computer Hackware Relay Coupler [NC] Protection Hardened Light Armor Plating Weapon Plasma Cannon Energy Gun Dispersion Rifle Energy Cannon Plasma Cannon Ballistic Gun Improved Assault Rifle Ballistic Cannon Advanced Assault Cannon Launcher Heavy Shock Bomb Launcher Special Weapon Remote Datajack Special Melee Weapon Datajack Build | -11 -10 -9 -8 -8 -8 -8 -8 -8 -7 -7 -7 -7 -6 -6 -6 -6 -5 -4 -4 -4 -3 -3 -3 -3 ------- Run | Yrd Mat Mat Mat Gar Mat Gar Mat Gar Fac Gar Fac Gar Fac Gar Fac Gar Fac Fac Gar Fac Res Gar Res Gar Slots Evolved 14 | . . 2 2 . . . . . 2 . . . 2 . . . 2 2 . . 2 . . . Power 1 | . . . . . . . . . . . . . . . . . 1 . . . . . . . Propulsion 2 | . . 1 . . . . . . 1 . . . . . . . . . . . . . . . Utility 10 | . . 1 1 . . . . . 1 . . . 2 . . . 1 2 . . 2 . . . Weapon 1 | . . . 1 . . . . . . . . . . . . . . . . . . . . . Parts Attached 368 | 6 2 14 6 16 27 20 5 4 15 16 17 21 6 10 1 19 14 4 33 27 20 43 9 13 Power 31 | 1 . 2 . 2 1 1 . . 2 1 1 2 . 1 . 1 1 2 1 4 3 4 . 1 Engine 13 | 1 . 2 . 1 1 1 . . 2 . 1 2 . 1 . . . 1 . . . . . . Core 3 | . . . . 1 . . . . . 1 . . . . . . . . . . 1 . . . Reactor 15 | . . . . . . . . . . . . . . . . 1 1 1 1 4 2 4 . 1 Propulsion 71 | 2 . 3 2 1 5 6 1 1 4 5 3 7 . 3 . 2 1 . 5 6 3 10 . 1 Treads 61 | 2 . 3 2 1 5 6 1 1 4 4 3 4 . 3 . 2 1 . 5 6 3 5 . . Leg 7 | . . . . . . . . . . 1 . 3 . . . . . . . . . 3 . . Wheel . | . . . . . . . . . . . . . . . . . . . . . . . . . Hover 3 | . . . . . . . . . . . . . . . . . . . . . . 2 . 1 Flight . | . . . . . . . . . . . . . . . . . . . . . . . . . Utility 144 | 1 2 4 3 6 10 9 1 2 3 9 11 7 3 3 . 9 7 2 13 10 9 10 4 6 Device 56 | . . 1 . 1 2 5 1 . 1 1 6 1 3 . . 2 5 2 4 5 7 4 2 3 Storage 3 | 1 1 1 . . . . . . . . . . . . . . . . . . . . . . Processor 6 | . . . . 1 . . . . 1 . . . . . . . . . . . 2 . 2 . Hackware 36 | . . 2 1 . 5 1 . . . . 1 6 . 3 . 6 1 . 3 2 . 2 . 3 Protection 43 | . 1 . 2 4 3 3 . 2 1 8 4 . . . . 1 1 . 6 3 . 4 . . Artifact . | . . . . . . . . . . . . . . . . . . . . . . . . . Weapon 122 | 2 . 5 1 7 11 4 3 1 6 1 2 5 3 3 1 7 5 . 14 7 5 19 5 5 Energy Gun 17 | 1 . 1 . . . . . . . . . . . . . . . . 3 4 2 3 3 . Energy Cannon 26 | . . . . . . 3 1 1 5 . 2 . 2 1 . . 1 . 1 1 3 4 1 . Ballistic Gun 37 | 1 . 3 1 5 4 . . . . . . 1 . . 1 4 2 . 6 2 . 6 . 1 Ballistic Cannon 8 | . . . . . 3 1 . . . 1 . 1 1 . . . . . . . . 1 . . Launcher 12 | . . 1 . . . . . . 1 . . 1 . . . . . . 1 . . 4 1 3 Special Weapon 14 | . . . . . . . . . . . . 2 . 2 . 3 2 . 3 . . 1 . 1 Impact Weapon . | . . . . . . . . . . . . . . . . . . . . . . . . . Slashing Weapon . | . . . . . . . . . . . . . . . . . . . . . . . . . Piercing Weapon . | . . . . . . . . . . . . . . . . . . . . . . . . . Special Melee Weapon 8 | . . . . 2 4 . 2 . . . . . . . . . . . . . . . . . Unidentified Prototypes 9 | . . 1 . . . . . . 1 . . . . . . . . . . . 5 . 2 . Corrupted Parts 1 | . . . . . . . . . . . . . . . . . . . . . . 1 . . System Corruption 10 | . . . . . . . . . . . . . . . . . . . . . . 10 . . Parts Lost 139 | . . . 1 6 4 11 . 3 2 11 3 5 . 3 . 3 2 . 14 22 4 29 . 16 Power 17 | . . . . 1 . 1 . . 1 1 1 1 . 1 . . . . 1 4 1 3 . 1 Propulsion 36 | . . . 1 . 2 3 . 1 1 2 1 4 . 2 . . 1 . 2 6 1 6 . 3 Utility 52 | . . . . 2 1 3 . 1 . 7 . . . . . 3 1 . 6 7 . 12 . 9 Weapon 34 | . . . . 3 1 4 . 1 . 1 1 . . . . . . . 5 5 2 8 . 3 Highest Loss Streak 16 | . . . 1 2 2 7 . 2 1 3 1 2 . 1 . 3 1 . 7 11 3 16 . 12 To Critical Strikes 1 | . . . . . . . . . . . . . . . . . . . . . . 1 . . Average Slot Usage (%) 92 | . 96 99 97 89 89 98 100 99 91 92 99 96 97 98 100 85 87 78 92 95 89 61 62 58 Engine 5 | . 14 11 9 5 9 9 9 9 7 4 5 7 6 5 6 3 . 1 5 2 . . . . Reactor 1 | . . . . . . . . . . . . . . . . 2 11 9 4 7 6 5 9 5 Treads 21 | . 28 33 27 19 18 26 27 27 22 23 29 17 20 23 26 13 10 10 15 20 14 7 9 2 Device 10 | . . 2 . 7 7 16 18 18 17 5 4 10 17 15 13 11 10 15 22 11 21 9 8 5 Storage 7 | . 22 12 9 9 9 9 9 9 7 7 7 7 6 6 6 6 5 5 5 5 4 1 . . Processor 2 | . . . . 7 9 2 . . 4 7 3 . . . . . . . . . 1 4 6 9 Hackware 11 | . . 14 12 . 1 1 9 2 . . 6 17 20 23 26 22 27 21 18 26 23 14 9 16 Protection 5 | . 2 3 11 10 7 6 . 6 7 15 14 1 . . . 4 1 . 4 4 . . . . Energy Gun 1 | . 14 2 . . . . . . . . . . . . . . . . 3 10 6 3 8 6 Energy Cannon 8 | . . . . . . 13 15 24 23 21 14 7 11 13 7 6 6 . . 2 6 5 3 . Ballistic Gun 7 | . 14 19 27 26 20 4 . . . . . 4 2 . 4 8 9 15 9 . . . . 2 Ballistic Cannon 2 | . . . . . 5 9 9 2 . 1 7 3 1 . . . . . . . . . . . Special Weapon 1 | . . . . . . . . . . . . 5 2 5 6 4 . . 1 . . . . . Naked Turns . | . . . . . . . . . . . . . . . . . . . . . . . . . Heaviest Build 152 | 11 91 94 117 117 118 127 116 121 119 121 125 127 118 118 109 120 132 132 142 149 148 152 109 99 Greatest Support 140 | 40 40 60 62 97 97 60 60 60 115 80 82 82 62 85 85 140 140 140 140 125 129 129 103 103 Greatest Overweight (x) 38 | . 2 1 1 1 1 5 1 2 2 38 2 4 1 2 1 1 . . 1 1 1 1 1 2 Average Overweight (x) . | . 1 1 1 1 1 1 1 1 1 1 1 1 1 1 1 . . . . 1 1 . . . Largest Inventory Capacity 25 | 8 25 25 25 25 25 25 25 25 25 25 25 25 25 25 25 25 25 25 25 25 25 25 5 5 Average Capacity 23 | 6 21 25 25 25 25 25 25 25 25 25 25 25 25 25 25 25 25 25 25 25 25 12 5 5 Most Carried 25 | 1 10 25 25 25 25 25 25 25 25 25 25 25 25 25 25 25 25 25 25 25 25 25 5 5 Average Carried 22 | . 3 23 24 24 24 22 24 22 24 23 24 24 24 24 25 24 24 24 22 20 23 11 4 4 Final Capacity 25 | 8 25 25 25 25 25 25 25 25 25 25 25 25 25 25 25 25 25 25 25 25 25 5 5 5 Final Carried 25 | 1 10 25 25 24 25 25 25 24 24 25 25 25 25 25 25 25 25 22 25 21 25 5 5 4 Class Distribution -------------------- 24% | Botlord-Tank 18% | Botlord-Gunner 14% | Bothacker-Gunner 13% | Bothacker-Tank 5% | Tank 5% | Mutant 3% | Scavenger-Tank 3% | Hacker-Mutant Dominant Class ---------------- Mutant | -10/Materials Hacker-Mutant | -9/Materials Hacker-Tank | -8/Materials Tank | -8/Garrison Commander-Tank | -8/Materials Scavenger-Tank | -8/Garrison Bothacker-Gunner | -8/Materials Bothacker-Tank | -8/Garrison Bothacker-Gunner | -7/Factory Bothacker-Gunner | -7/Garrison Botlord-Tank | -7/Factory Botlord-Gunner | -7/Garrison Botlord-Tank | -6/Factory Botlord-Gunner | -6/Garrison Botlord-Gunner | -6/Factory Botlord-Tank | -6/Garrison Botlord-Tank | -5/Factory Botlord-Tank | -4/Factory Botlord-Tank | -4/Garrison Botlord-Tank | -4/Factory Botlord-Gunner | -3/Research Botlord-Gunner | -3/Garrison Skirmisher | -3/Research Gunner | -3/Garrison Resources | -11 -10 -9 -8 -8 -8 -8 -8 -8 -7 -7 -7 -7 -6 -6 -6 -6 -5 -4 -4 -4 -3 -3 -3 -3 ----------- Run | Yrd Mat Mat Mat Gar Mat Gar Mat Gar Fac Gar Fac Gar Fac Gar Fac Gar Fac Fac Gar Fac Res Gar Res Gar Matter Collected 10388 | 176 139 832 563 947 1058 898 216 34 131 215 395 483 52 228 14 613 448 . 1054 360 495 738 68 231 Remotely 387 | . . . . . . . . . . . . . . . . . . . 387 . . . . . Salvage Created 17783 | . 130 1184 1251 1616 1881 962 544 99 887 963 952 345 104 230 . 552 509 . 1429 1512 835 1350 68 380 Parts 913 | . 10 93 75 84 106 53 31 4 62 43 49 20 1 14 . 20 23 . 65 67 35 43 3 12 Haulers Intercepted 15 | . 1 3 1 1 3 . 2 . 1 . 1 . 1 . . . . . . . 1 . . . Recyclers Shooed 9 | . . 3 . . . . . . 1 . 1 . 1 . . . . . . 1 2 . . . Parts Field Recycled . | . . . . . . . . . . . . . . . . . . . . . . . . . Retrieved Matter . | . . . . . . . . . . . . . . . . . . . . . . . . . Parts Self-Destructed . | . . . . . . . . . . . . . . . . . . . . . . . . . Prevented . | . . . . . . . . . . . . . . . . . . . . . . . . . Kills | -11 -10 -9 -8 -8 -8 -8 -8 -8 -7 -7 -7 -7 -6 -6 -6 -6 -5 -4 -4 -4 -3 -3 -3 -3 ------- Run | Yrd Mat Mat Mat Gar Mat Gar Mat Gar Fac Gar Fac Gar Fac Gar Fac Gar Fac Fac Gar Fac Res Gar Res Gar Combat Hostiles Destroyed 323 | . 1 21 24 30 27 27 11 5 19 23 15 10 . 5 . 10 9 . 20 22 9 24 1 10 Guns 155 | . 1 18 24 30 23 3 . . . . . 1 . . . 7 8 . 19 10 3 4 1 3 Cannons 134 | . . . . . 4 24 11 5 19 22 15 6 . 5 . 3 . . . 7 3 10 . . AOE 20 | . . 3 . . . . . . . . . 3 . . . . . . 1 2 . 4 . 7 Classes Destroyed 19 | . 3 7 1 1 3 1 . . . . . . . . . . . . 1 1 . 1 . . Worker 11 | . . 1 1 . 2 . 3 . 1 . . . . . . . 2 . . 1 . . . . Builder 7 | . . 3 . . 3 . 1 . . . . . . . . . . . . . . . . . Tunneler 3 | . . . 1 . . . . . . . 1 . . . . . . . . . 1 . . . Hauler 15 | . 1 3 1 1 3 . 2 . 1 . 1 . 1 . . . . . . . 1 . . . Recycler 7 | . . 2 . . . . . . . . 4 . . . . . . . . 1 . . . . Operator 4 | . . 1 1 . . . . . 1 . . . . . . . . . . 1 . . . . Watcher 15 | . 2 3 2 1 2 . 1 . 2 . 1 . . . . . . . . . . 1 . . Swarmer 65 | . . 3 7 7 . 5 2 4 8 9 3 3 . 2 . . 3 . . 1 . 4 . 4 Cutter 7 | . . . . . . . . . . . . . . . . . . . 3 . . 4 . . Grunt 149 | . 1 14 11 19 16 14 5 . 8 5 7 3 . 1 . 9 5 . 8 9 3 5 . 6 Brawler 10 | . . . . . 3 2 . . . . 1 1 . . . . 1 . 1 . . 1 . . Duelist 8 | . . 1 . . 2 2 . . . . . 1 . . . . . . 1 . . 1 . . Sentry 37 | . . 3 6 . 3 1 4 . . 6 2 . . 1 . . . . 4 1 3 3 . . Demolisher 1 | . . . . . 1 . . . . . . . . . . . . . . . . . . . Specialist 9 | . . . . . 2 2 . . . . . . . 1 . . . . . . . 4 . . Hunter 14 | . . . . 4 . . . 1 1 2 . 1 . . . . 1 . 4 . . . . . Programmer 22 | . . . . . . 1 . . 2 1 2 1 . . . 1 1 . . 8 3 1 1 . Heavy 3 | . . . . . . . . . . . . . . . . . . . . 3 . . . . Behemoth 1 | . . . . . . . . . . . . . . . . . . . . . . 1 . . Best Kill Streak 13 | . 2 13 5 8 7 11 4 4 5 8 4 3 1 2 . 6 4 . 5 4 3 5 1 7 Combat Bots Only 11 | . 1 8 5 8 6 11 2 4 4 8 3 3 . 2 . 6 4 . 5 4 3 5 1 7 Max Kills in Single Turn 4 | . 1 3 2 2 2 1 2 1 2 1 1 2 1 1 . 1 2 . 2 2 1 2 1 4 Gunslinging 1 | . . . 1 1 . . . . . . . . . . . . . . . . . . . . Exploded 4 | . . 3 . . . . . . . . . 2 . . . . . . 1 2 . 2 . 4 Melee . | . . . . . . . . . . . . . . . . . . . . . . . . . Uniques/NPCs Destroyed . | . . . . . . . . . . . . . . . . . . . . . . . . . Combat | -11 -10 -9 -8 -8 -8 -8 -8 -8 -7 -7 -7 -7 -6 -6 -6 -6 -5 -4 -4 -4 -3 -3 -3 -3 -------- Run | Yrd Mat Mat Mat Gar Mat Gar Mat Gar Fac Gar Fac Gar Fac Gar Fac Gar Fac Fac Gar Fac Res Gar Res Gar Hostile Shots Fired 2528 | . 2 69 76 143 97 220 27 38 67 292 75 64 . 63 2 115 120 . 207 173 68 379 34 197 Missed 736 | . 2 27 26 34 19 67 10 4 22 88 26 17 . 29 1 21 30 . 43 46 13 144 7 60 Damage Taken 30993 | . . 533 676 1688 1354 1849 236 388 722 2222 641 976 . 516 15 1559 1502 . 2892 3997 1273 4692 583 2679 Core 2961 | . . 31 66 65 143 208 14 33 54 239 22 125 . 12 . 94 111 . 170 252 149 384 24 765 Absorbed by Shields 1200 | . . . . 58 44 344 . . . . . . . . . 185 494 . 75 . . . . . Reduced by Siege Mode 734 | . . . . 95 25 . . . 17 . . . . . . 158 135 . 185 . 46 55 . 18 Redirected to Shielding 314 | . . 2 . . . . . . 48 264 . . . . . . . . . . . . . . Ignored by Resistances 559 | . . . . . . . . . . . 8 . . . . . 158 . 393 . . . . . Regen/Repaired (Parts) 1336 | . . . . . 116 . 480 . . . . . . . 105 455 180 . . . . . . . Core Remaining (%) 71 | 100 100 92 . . . . . 3 . . . 37 . . . 87 88 . . 63 . . . . Volleys Fired 1142 | . 16 88 58 86 65 77 26 12 33 62 36 41 3 46 5 66 47 . 86 83 58 116 6 26 Largest 3 | . 2 2 3 3 3 3 3 3 3 3 3 3 3 3 2 3 3 . 3 3 1 3 2 3 Hottest 321 | . 60 60 69 84 118 217 217 235 235 150 188 188 235 235 95 123 183 . 176 266 94 321 130 165 Shots Fired 2526 | . 31 165 174 258 195 188 68 36 99 174 95 79 9 71 6 118 114 . 210 189 59 137 10 41 Gun 1419 | . 31 164 174 258 161 32 . . . . . 13 . . 1 56 76 . 191 143 18 54 9 38 Cannon 992 | . . . . . 34 156 68 36 99 174 95 52 9 50 1 31 33 . 5 43 41 64 1 . Launcher 21 | . . 1 . . . . . . . . . 3 . . . . . . 3 . . 11 . 3 Special 94 | . . . . . . . . . . . . 11 . 21 4 31 5 . 11 3 . 8 . . Kinetic 1330 | . 16 123 174 258 195 116 26 2 . 1 36 33 . . 1 56 76 . 152 12 . 32 . 21 Thermal 1015 | . 15 41 . . . 72 42 34 99 173 59 32 9 50 1 31 33 . 44 174 35 45 9 17 Explosive 12 | . . 1 . . . . . . . . . . . . . . . . . . . 8 . 3 Electromagnetic 75 | . . . . . . . . . . . . 3 . . . . . . 3 . 24 44 1 . Robot Hit Streak 23 | . 5 12 13 16 18 12 12 7 13 15 13 17 7 12 3 22 17 . 16 13 17 23 4 7 Robot Miss Streak 6 | . 2 3 6 5 4 3 2 5 2 3 2 3 3 2 1 4 3 . 6 4 2 5 3 2 Penetration Max 1 | . . . . 1 1 1 1 . . . . . . . . 1 1 . 1 . . . . . Secondary Targets 27 | . . 1 9 8 2 . . . . . . . . . . . 2 . 1 2 . . . 2 Max Gunslinging Chain 1 | . . 1 1 1 1 . . . . . . . . . . . 1 . 1 1 . . . 1 Capacitor 117 | . . . . . . . . . . . . . . . . . . . . 20 59 38 . . Shots Hit Robots 1635 | . 19 112 109 169 141 105 47 17 56 101 62 48 7 45 4 72 89 . 151 125 48 75 4 29 Core Hits 695 | . 8 57 57 77 56 43 21 5 33 39 28 16 3 10 . 23 23 . 60 47 17 47 1 24 Critical Kills 14 | . . . . . 2 . . . . 1 . . . . . . . . 2 4 2 3 . . Critical Parts Destroyed 23 | . . . 1 5 3 . . . . . . . . . . . 2 . 2 7 2 1 . . Critical Strikes 60 | . . . 1 5 7 9 1 . . 1 3 2 . . . . 2 . 6 12 5 6 . . Burn 3 | . . . . . . . . . . . . . . . . . . . 2 1 . . . . Meltdown 4 | . . . . . . . . . . 1 . . . . . . . . . 1 1 1 . . Destroy 33 | . . . 1 5 5 . . . . . . . . . . . 2 . 4 10 3 3 . . Blast 18 | . . . . . 2 9 1 . . . 3 2 . . . . . . . . . 1 . . Corrupt 2 | . . . . . . . . . . . . . . . . . . . . . 1 1 . . Melee Attacks 31 | . . . . 7 22 . 2 . . . . . . . . . . . . . . . . . Impact . | . . . . . . . . . . . . . . . . . . . . . . . . . Slashing . | . . . . . . . . . . . . . . . . . . . . . . . . . Piercing . | . . . . . . . . . . . . . . . . . . . . . . . . . Sneak Attacks 27 | . . . . 7 18 . 2 . . . . . . . . . . . . . . . . . Combat Hostiles . | . . . . . . . . . . . . . . . . . . . . . . . . . Follow-up Attacks . | . . . . . . . . . . . . . . . . . . . . . . . . . Damage Inflicted 42495 | . 239 1814 1817 2935 3218 3065 1424 442 1619 2732 1813 1201 250 779 25 1326 2484 . 3570 3997 2090 3489 123 2043 Guns 20408 | . 239 1693 1816 2935 2740 405 . . . . . 114 . . 25 764 1477 . 3190 2668 610 757 114 861 Cannons 18662 | . . . . . 467 2660 1421 442 1601 2732 1781 858 222 779 . 562 868 . 128 1036 1480 1616 9 . Explosions 3260 | . . 121 . . . . . . . . . 229 . . . . 99 . 252 267 . 1110 . 1182 Melee . | . . . . . . . . . . . . . . . . . . . . . . . . . Ramming 165 | . . . 1 . 11 . 3 . 18 . 32 . 28 . . . 40 . . 26 . 6 . . Kinetic 19220 | . 149 1375 1816 2935 3207 1968 665 33 . . 651 503 . . 25 764 1477 . 2484 232 . 472 . 464 Thermal 18451 | . 90 318 . . . 1097 756 409 1601 2732 1130 567 222 779 . 562 967 . 953 3472 1253 1032 114 397 Explosive 2302 | . . 121 . . . . . . . . . . . . . . . . . 267 . 732 . 1182 Electromagnetic 2357 | . . . . . . . . . . . . 131 . . . . . . 133 . 837 1247 9 . Impact . | . . . . . . . . . . . . . . . . . . . . . . . . . Slashing . | . . . . . . . . . . . . . . . . . . . . . . . . . Piercing . | . . . . . . . . . . . . . . . . . . . . . . . . . Highest Corruption 20 | . 3 . . . . . . . 1 2 3 4 . 2 2 4 2 . 1 6 6 18 20 20 Average Corruption 4 | . 2 . . . . . . . 1 1 2 4 . 1 2 3 1 . 1 2 4 11 18 20 Corruption Purged 3 | . . . . . . . . . . . 3 . . . . . . . . . . . . . Corruption Blocked . | . . . . . . . . . . . . . . . . . . . . . . . . . Effects 253 | . . . . . . . . . 6 30 14 24 . 8 3 26 13 . 3 27 13 59 11 16 Message Errors 63 | . . . . . . . . . 1 6 3 4 . 3 . 6 5 . . 6 4 18 4 3 Matter Fused 57 | . . . . . . . . . . 7 6 6 . 2 1 7 2 . . 6 5 10 3 2 Heat Flow Errors 30 | . . . . . . . . . 1 6 1 2 . 2 . 2 1 . . 5 . 8 . 2 Energy Discharges 34 | . . . . . . . . . 3 3 . 7 . . 1 3 1 . 1 5 1 7 2 . Parts Rejected 2 | . . . . . . . . . . 1 . . . . . . . . . . . 1 . . Parts Fused 2 | . . . . . . . . . . 1 . . . 1 . . . . . . . . . . Data Loss (minor) 25 | . . . . . . . . . . 2 1 2 . . . 6 1 . 1 2 1 5 . 4 Data Loss (major) 8 | . . . . . . . . . 1 1 1 . . . 1 . . . 1 1 1 1 . . Misfires 10 | . . . . . . . . . . 2 1 . . . . 1 2 . . 1 1 2 . . Alerts 6 | . . . . . . . . . . . 1 3 . . . 1 . . . . . 1 . . Misdirections 5 | . . . . . . . . . . . . . . . . . . . . . . 1 1 3 Weapon Failures 11 | . . . . . . . . . . 1 . . . . . . 1 . . 1 . 5 1 2 Overload Shots 1 | . . . . . . . . . . 1 . . . . . . . . . . . . . . Overflow Damage 436 | . . 3 . . 13 61 33 18 4 13 39 28 5 22 . . 35 . 47 5 45 35 . 30 Projectiles 358 | . . . . . 13 61 33 18 4 13 39 16 5 22 . . 35 . 27 5 45 22 . . Explosions 78 | . . 3 . . . . . . . . . 12 . . . . . . 20 . . 13 . 30 Melee . | . . . . . . . . . . . . . . . . . . . . . . . . . Knockbacks 31 | . . . . . 3 18 2 1 . . 5 1 . . . . . . . 1 . . . . Impact 1 | . . . . . . . . . . . . . . . . . . . . 1 . . . . Kinetic 26 | . . . . . 3 14 2 1 . . 5 1 . . . . . . . . . . . . Secondary 4 | . . . . . . 4 . . . . . . . . . . . . . . . . . . Self-Inflicted Damage 488 | . . . . . . . . . . . . . . . . . 52 . 153 51 . 129 . 103 Shots 12 | . . . . . . . . . . . . . . . . . 1 . 5 1 . 3 . 2 Rammed 13 | . . . 1 . 1 . 1 . 2 . 3 . 2 . . . 1 . . 1 . 1 . . Targets Rammed 17 | . . . 1 . 1 . 2 . 2 . 5 . 2 . . . 2 . . 1 . 1 . . Kicked . | . . . . . . . . . . . . . . . . . . . . . . . . . Crushed 4 | . . . . . . . 1 . . . 2 . . . . . 1 . . . . . . . Highest Temperature 540 | . . 18 128 333 359 360 90 200 414 269 405 199 193 193 34 361 514 . 319 395 460 540 277 318 Average Temperature 112 | . . 9 41 97 94 135 30 70 95 83 118 93 118 66 18 105 142 . 86 147 186 142 129 172 Received Heat Transfer 7286 | . . 219 297 606 612 842 81 . 81 459 279 135 . 114 . 676 522 . 382 375 177 663 157 609 Effects 26 | . . . . . 2 5 . . . 2 2 . . . . . 2 . 1 1 6 5 . . Shutdowns 8 | . . . . . 1 . . . . . . . . . . . 2 . . . 2 3 . . Energy Bleed 8 | . . . . . . 1 . . . 2 2 . . . . . . . 1 . . 2 . . Interference 7 | . . . . . . 3 . . . . . . . . . . . . . 1 3 . . . Matter Decay 1 | . . . . . 1 . . . . . . . . . . . . . . . . . . . Damage (minor) 2 | . . . . . . 1 . . . . . . . . . . . . . . 1 . . . Siege Activations 40 | . . . . 12 4 . . . 5 . . . . . . 2 3 . 7 . 4 2 . 1 Total Turns 705 | . . . . 160 69 . . . 70 . . . . . . 82 95 . 134 . 30 61 . 4 Longest Duration 48 | . . . . 30 25 . . . 33 . . . . . . 48 41 . 46 . 17 48 . 4 Robots Corrupted 8 | . . . . . . . . . . . . . . . . . . . . . 3 5 . . Combat Hostiles 7 | . . . . . . . . . . . . . . . . . . . . . 3 4 . . Parts Fried 15 | . . . . . . . . . . . . 1 . . . . . . . . 5 9 . . Impact Corruptions . | . . . . . . . . . . . . . . . . . . . . . . . . . Robots Melted 8 | . . . . . . . . . . 1 . . . . . . 1 . . 3 1 2 . . Combat Hostiles 7 | . . . . . . . . . . 1 . . . . . . 1 . . 3 . 2 . . Parts Melted 66 | . . 2 . . . 4 3 1 2 11 1 1 . 2 . 1 4 . 1 23 2 4 . 4 Heat Transferred 26618 | . 200 700 . . . 1920 1450 748 2595 3350 1658 898 361 1307 . 740 1268 . 1484 4904 1355 1088 111 481 Parts Sabotaged . | . . . . . . . . . . . . . . . . . . . . . . . . . Parts Stolen . | . . . . . . . . . . . . . . . . . . . . . . . . . Parts Stripped . | . . . . . . . . . . . . . . . . . . . . . . . . . Power Chain Reactions 7 | . . . . . . . . . . . . 1 . . . . . . 4 . . 2 . . Alert | -11 -10 -9 -8 -8 -8 -8 -8 -8 -7 -7 -7 -7 -6 -6 -6 -6 -5 -4 -4 -4 -3 -3 -3 -3 ------- Run | Yrd Mat Mat Mat Gar Mat Gar Mat Gar Fac Gar Fac Gar Fac Gar Fac Gar Fac Fac Gar Fac Res Gar Res Gar Peak Influence 1448 | . 77 294 470 1448 986 1420 737 342 241 853 509 464 247 531 288 279 274 89 367 276 148 395 264 469 Initial 705 | . . . 78 156 705 375 692 250 179 53 447 11 243 23 278 61 146 89 62 182 118 26 222 183 Average 319 | . 36 102 255 800 517 929 489 296 75 420 262 200 199 296 249 104 118 89 245 123 79 168 231 235 Maximum Alert Level 4 | . . 1 2 4 3 4 3 1 1 3 2 2 1 2 1 1 1 . 1 1 . 1 1 2 Low Security (%) 45 | 100 100 98 35 1 . . . . 96 18 40 52 23 25 15 94 93 100 29 69 100 80 . 42 Level 1 28 | . . 1 43 12 44 2 44 100 3 32 33 42 76 48 84 5 6 . 70 30 . 19 100 47 Level 2 14 | . . . 21 39 24 25 26 . . 35 26 4 . 25 . . . . . . . . . 10 Level 3 6 | . . . . 14 30 33 28 . . 13 . . . . . . . . . . . . . . Level 4 4 | . . . . 31 . 38 . . . . . . . . . . . . . . . . . . Level 5 . | . . . . . . . . . . . . . . . . . . . . . . . . . High Security . | . . . . . . . . . . . . . . . . . . . . . . . . . Max Security . | . . . . . . . . . . . . . . . . . . . . . . . . . Squads Dispatched 36 | . . 3 1 . 8 . . . 5 . 4 . . . 1 . 4 . . 7 2 . 1 . Investigation 8 | . . 2 . . 1 . . . 2 . 2 . . . . . 1 . . . . . . . Extermination 12 | . . . . . . . . . 2 . 2 . . . 1 . 2 . . 4 1 . . . Reinforcement 10 | . . 1 1 . 3 . . . . . . . . . . . 1 . . 3 1 . . . Assault 1 | . . . . . 1 . . . . . . . . . . . . . . . . . . . Garrison 5 | . . . . . 3 . . . 1 . . . . . . . . . . . . . 1 . Intercept . | . . . . . . . . . . . . . . . . . . . . . . . . . Searches Triggered . | . . . . . . . . . . . . . . . . . . . . . . . . . Construction Impeded . | . . . . . . . . . . . . . . . . . . . . . . . . . Haulers Reinforced 1 | . . . . . . . . . . . . . . . . . . . . . 1 . . . Active Scanning Responses . | . . . . . . . . . . . . . . . . . . . . . . . . . Cargo Convoy Interrupts 1 | . . . . . . . . . . . . . . . . . . . . 1 . . . . Alert ID Control Effect 34 | . . . . . . . . . . . . 7 . 5 1 12 6 . 2 . . 1 . . Stealth | -11 -10 -9 -8 -8 -8 -8 -8 -8 -7 -7 -7 -7 -6 -6 -6 -6 -5 -4 -4 -4 -3 -3 -3 -3 --------- Run | Yrd Mat Mat Mat Gar Mat Gar Mat Gar Fac Gar Fac Gar Fac Gar Fac Gar Fac Fac Gar Fac Res Gar Res Gar Distress Signals 24 | . 1 3 5 1 5 . 2 . 1 . . . 1 . . . 3 . . 1 . 1 . . Communications Jammed 26 | . . . . . . . . . . . . . 1 . . . . . . 25 . . . . Distress Signals 18 | . . . . . . . . . . . . . . . . . . . . 18 . . . . Times Spotted 524 | . 4 29 36 33 42 37 14 5 23 32 17 28 1 28 1 32 24 . 33 30 10 32 7 26 Peak Tracking Total 16 | . 1 9 5 7 6 11 4 4 4 5 3 4 3 5 1 7 6 . 8 6 3 7 6 16 Tactical Retreats 17 | . . 3 1 . 2 3 . . . . . . . 2 . . 2 . 1 1 1 1 . . Traps | -11 -10 -9 -8 -8 -8 -8 -8 -8 -7 -7 -7 -7 -6 -6 -6 -6 -5 -4 -4 -4 -3 -3 -3 -3 ------- Run | Yrd Mat Mat Mat Gar Mat Gar Mat Gar Fac Gar Fac Gar Fac Gar Fac Gar Fac Fac Gar Fac Res Gar Res Gar Traps Triggered 58 | . 2 2 . 12 . 8 . . . 4 2 9 2 3 . . 3 . 4 2 . 5 . . Indirectly . | . . . . . . . . . . . . . . . . . . . . . . . . . Trap Hack Attempts . | . . . . . . . . . . . . . . . . . . . . . . . . . Triggered . | . . . . . . . . . . . . . . . . . . . . . . . . . Disarmed . | . . . . . . . . . . . . . . . . . . . . . . . . . Reprogrammed 4 | . . . . . . . . . . . 4 . . . . . . . . . . . . . Reused . | . . . . . . . . . . . . . . . . . . . . . . . . . Traps Extracted . | . . . . . . . . . . . . . . . . . . . . . . . . . Installed . | . . . . . . . . . . . . . . . . . . . . . . . . . Triggered 2 | . . . . . . . . . . . . . . . . . . . . 2 . . . . Machines | -11 -10 -9 -8 -8 -8 -8 -8 -8 -7 -7 -7 -7 -6 -6 -6 -6 -5 -4 -4 -4 -3 -3 -3 -3 ---------- Run | Yrd Mat Mat Mat Gar Mat Gar Mat Gar Fac Gar Fac Gar Fac Gar Fac Gar Fac Fac Gar Fac Res Gar Res Gar Machines Disabled 52 | . . 1 1 5 4 3 2 1 . 4 . 7 . 5 . 4 5 . 2 4 . 2 . 2 Max in Single Turn 2 | . . 1 1 1 1 1 1 1 . 2 . 2 . 1 . 1 2 . 1 1 . 1 . 1 Garrison Access 1 | . . . . . . . . . . . 1 . . . . . . . . . . . . . Garrison Relay 30 | . . . . 5 . 3 . 1 . 2 . 7 . 4 . 4 . . 2 . . 1 . 1 Machines Repaired . | . . . . . . . . . . . . . . . . . . . . . . . . . Machines Dismantled . | . . . . . . . . . . . . . . . . . . . . . . . . . Machines Sabotaged . | . . . . . . . . . . . . . . . . . . . . . . . . . Overloaded Fab Kills . | . . . . . . . . . . . . . . . . . . . . . . . . . Hacking | -11 -10 -9 -8 -8 -8 -8 -8 -8 -7 -7 -7 -7 -6 -6 -6 -6 -5 -4 -4 -4 -3 -3 -3 -3 --------- Run | Yrd Mat Mat Mat Gar Mat Gar Mat Gar Fac Gar Fac Gar Fac Gar Fac Gar Fac Fac Gar Fac Res Gar Res Gar Machines Accessed 74 | . 2 5 5 5 6 2 5 . 7 2 12 1 2 3 3 3 4 1 1 1 1 1 1 1 Terminals 48 | . 2 4 3 5 4 2 3 . 3 2 5 1 1 3 . 3 3 . 1 1 . 1 . 1 Fabricators 3 | . . . . . . . . . 1 . 2 . . . . . . . . . . . . . Repair Stations 6 | . . . . . . . 1 . 1 . 3 . . . 1 . . . . . . . . . Recycling Units 1 | . . . . . . . . . . . . . . . 1 . . . . . . . . . Scanalyzers 5 | . . 1 1 . 1 . . . 1 . . . . . . . 1 . . . . . . . Garrison Access 11 | . . . 1 . 1 . 1 . 1 . 2 . 1 . 1 . . 1 . . 1 . 1 . Total Hacks 195 | . 4 25 21 14 22 4 18 . 26 3 25 1 3 5 4 5 8 1 1 1 1 1 1 1 Successful 80 | . 1 14 10 . 10 1 6 . 18 . 9 . 3 . 2 . 2 1 1 . 1 . 1 . Failed 112 | . 2 10 10 14 12 3 12 . 8 3 16 1 . 5 2 5 6 . . 1 . 1 . 1 Catastrophic 33 | . 1 2 1 5 3 2 1 . 2 1 5 1 . 3 1 2 1 . . . . 1 . 1 Database Lockouts 3 | . 1 1 1 . . . . . . . . . . . . . . . . . . . . . Manual 71 | . 3 15 13 . 14 1 4 . 11 . 8 . 1 . 1 . . . . . . . . . Terminals 135 | . 4 15 17 14 18 4 10 . 17 3 12 1 2 5 . 5 4 . 1 1 . 1 . 1 Fabricators 9 | . . . . . . . . . 2 . 7 . . . . . . . . . . . . . Repair Stations 13 | . . . . . . . 7 . 1 . 3 . . . 2 . . . . . . . . . Recycling Units 1 | . . . . . . . . . . . . . . . 1 . . . . . . . . . Scanalyzers 24 | . . 10 2 . 3 . . . 5 . . . . . . . 4 . . . . . . . Garrison Access 13 | . . . 2 . 1 . 1 . 1 . 3 . 1 . 1 . . 1 . . 1 . 1 . Terminal Hacks 34 | . 1 4 7 . 6 1 3 . 7 . 3 . 1 . . . . . 1 . . . . . Part Schematic 5 | . . . 2 . 2 . . . 1 . . . . . . . . . . . . . . . Robot Schematic 1 | . . . . . 1 . . . . . . . . . . . . . . . . . . . Robot Analysis 5 | . 1 3 . . 1 . . . . . . . . . . . . . . . . . . . Prototype ID Bank 5 | . . 1 1 . 1 . 1 . . . . . 1 . . . . . . . . . . . Branch Access Points 1 | . . . . . . . . . 1 . . . . . . . . . . . . . . . Emergency Access Points 1 | . . . . . . . . . . . . . . . . . . . 1 . . . . . Terminal Index 2 | . . . 1 . . . . . 1 . . . . . . . . . . . . . . . Garrison Index 1 | . . . 1 . . . . . . . . . . . . . . . . . . . . . Unreport Threat 7 | . . . 2 . 1 . 2 . 1 . 1 . . . . . . . . . . . . . Locate Traps 3 | . . . . . . . . . 2 . 1 . . . . . . . . . . . . . Reprogram Traps 1 | . . . . . . . . . . . 1 . . . . . . . . . . . . . Zone Layout 1 | . . . . . . . . . 1 . . . . . . . . . . . . . . . Security Stations 1 | . . . . . . 1 . . . . . . . . . . . . . . . . . . Fabricator Hacks 4 | . . . . . . . . . 2 . 2 . . . . . . . . . . . . . Load Schematic 3 | . . . . . . . . . 1 . 2 . . . . . . . . . . . . . Build 1 | . . . . . . . . . 1 . . . . . . . . . . . . . . . Repair Station Hacks 2 | . . . . . . . 2 . . . . . . . . . . . . . . . . . Scan Component 1 | . . . . . . . 1 . . . . . . . . . . . . . . . . . Repair 1 | . . . . . . . 1 . . . . . . . . . . . . . . . . . Recycling Unit Hacks . | . . . . . . . . . . . . . . . . . . . . . . . . . Scanalyzer 21 | . . 10 2 . 2 . . . 5 . . . . . . . 2 . . . . . . . Insert Component 11 | . . 5 1 . 2 . . . 2 . . . . . . . 1 . . . . . . . Analyze 10 | . . 5 1 . . . . . 3 . . . . . . . 1 . . . . . . . Garrison Access Hacks 12 | . . . 1 . 1 . 1 . 1 . 3 . 1 . 1 . . 1 . . 1 . 1 . Unlock Access 10 | . . . 1 . 1 . 1 . 1 . 1 . 1 . 1 . . 1 . . 1 . 1 . Seal Access 1 | . . . . . . . . . . . 1 . . . . . . . . . . . . . Coupler Status 1 | . . . . . . . . . . . 1 . . . . . . . . . . . . . Unauthorized Hacks 7 | . . . . . 1 . . . 3 . 1 . 1 . 1 . . . . . . . . . Terminals 5 | . . . . . 1 . . . 3 . . . 1 . . . . . . . . . . . Botnet 4 | . . . . . . . . . 3 . . . 1 . . . . . . . . . . . Operators 1 | . . . . . 1 . . . . . . . . . . . . . . . . . . . Fabricators 1 | . . . . . . . . . . . 1 . . . . . . . . . . . . . Recompile 1 | . . . . . . . . . . . 1 . . . . . . . . . . . . . Repair Stations 1 | . . . . . . . . . . . . . . . 1 . . . . . . . . . Mechanics 1 | . . . . . . . . . . . . . . . 1 . . . . . . . . . Recycling Units . | . . . . . . . . . . . . . . . . . . . . . . . . . Scanalyzers . | . . . . . . . . . . . . . . . . . . . . . . . . . Garrison Access . | . . . . . . . . . . . . . . . . . . . . . . . . . Data Cores Recovered . | . . . . . . . . . . . . . . . . . . . . . . . . . Used . | . . . . . . . . . . . . . . . . . . . . . . . . . Hacking Detections 66 | . 2 5 4 5 5 2 5 . 6 2 11 1 1 3 2 3 4 1 . 1 1 1 . 1 Full Trace Events 14 | . . 3 . 3 1 1 . . 2 . 1 . . 2 . 1 . . . . . . . . Feedback Events 1 | . . . . . . . . . . . 1 . . . . . . . . . . . . . Corruption 1 | . . . . . . . . . . . 1 . . . . . . . . . . . . . Feedback Blocked . | . . . . . . . . . . . . . . . . . . . . . . . . . Robot Schematics Acquired 1 | . . . . . 1 . . . . . . . . . . . . . . . . . . . Robots Built . | . . . . . . . . . . . . . . . . . . . . . . . . . Authchips . | . . . . . . . . . . . . . . . . . . . . . . . . . Time . | . . . . . . . . . . . . . . . . . . . . . . . . . Total Robot Build Rating . | . . . . . . . . . . . . . . . . . . . . . . . . . Part Schematics Acquired 10 | . . 3 3 . 2 . . . 2 . . . . . . . . . . . . . . . Parts Built 2 | . . . . . . . . . 2 . . . . . . . . . . . . . . . Authchips . | . . . . . . . . . . . . . . . . . . . . . . . . . Time 73 | . . . . . . . . . 73 . . . . . . . . . . . . . . . Total Part Build Rating 6 | . . . . . . . . . 6 . . . . . . . . . . . . . . . Parts Repaired 1 | . . . . . . . 1 . . . . . . . . . . . . . . . . . Time 86 | . . . . . . . 86 . . . . . . . . . . . . . . . . . Parts Recycled . | . . . . . . . . . . . . . . . . . . . . . . . . . Recycled Matter . | . . . . . . . . . . . . . . . . . . . . . . . . . Retrieved Matter . | . . . . . . . . . . . . . . . . . . . . . . . . . Retrieved Components . | . . . . . . . . . . . . . . . . . . . . . . . . . Parts Scanalyzed 7 | . . 3 1 . 1 . . . 1 . . . . . . . 1 . . . . . . . Part Schematics Acquired 5 | . . 3 1 . . . . . 1 . . . . . . . . . . . . . . . Parts Damaged 3 | . . 1 . . 1 . . . 1 . . . . . . . . . . . . . . . Bothacking | -11 -10 -9 -8 -8 -8 -8 -8 -8 -7 -7 -7 -7 -6 -6 -6 -6 -5 -4 -4 -4 -3 -3 -3 -3 ------------ Run | Yrd Mat Mat Mat Gar Mat Gar Mat Gar Fac Gar Fac Gar Fac Gar Fac Gar Fac Fac Gar Fac Res Gar Res Gar Used RIF Installer 9 | . . . . 1 . 2 . . . 1 . 1 . 1 . 1 . . 1 . . . . 1 Hotswap 1 | . . . . . . . . . . . . . . 1 . . . . . . . . . . Code Merge 2 | . . . . . . . . . . 1 . . . . . . . . . . . . . 1 Command Fork 2 | . . . . . . . . . . . . 1 . . . . . . 1 . . . . . Threat Obfuscator 1 | . . . . . . 1 . . . . . . . . . . . . . . . . . . Alert ID Control 1 | . . . . . . 1 . . . . . . . . . . . . . . . . . . Autoassimilate 1 | . . . . . . . . . . . . . . . . 1 . . . . . . . . Robots Hacked 59 | . . . . . 5 . 2 . . . . 8 . 11 2 14 3 . 9 1 . 3 1 . Non-combat 10 | . . . . . 4 . 2 . . . . . . . 2 . 1 . . 1 . . . . Combat 49 | . . . . . 1 . . . . . . 8 . 11 . 14 2 . 9 . . 3 1 . Autoassimilated 4 | . . . . . . . . . . . . . . . . . 2 . 1 . . . 1 . Robot Hacks Applied 70 | . . . . . 18 . 2 . . . . 8 . 11 2 16 1 . 8 1 . 3 . . parse_system 7 | . . . . . 3 . 1 . . . . . . . . 2 . . . . . 1 . . drop_inventory 2 | . . . . . 1 . 1 . . . . . . . . . . . . . . . . . purge_threat 9 | . . . . . 9 . . . . . . . . . . . . . . . . . . . clear_recycling 2 | . . . . . 2 . . . . . . . . . . . . . . . . . . . map_route 2 | . . . . . . . . . . . . . . . . . 1 . . 1 . . . . mark_security 1 | . . . . . 1 . . . . . . . . . . . . . . . . . . . overload_power 1 | . . . . . . . . . . . . . . . . . . . 1 . . . . . amplify_resonance 8 | . . . . . . . . . . . . 1 . 2 . 4 . . . . . 1 . . disable_weapons 1 | . . . . . . . . . . . . . . 1 . . . . . . . . . . overwrite_iff 9 | . . . . . . . . . . . . 3 . . . 2 . . 4 . . . . . formatsys_low 3 | . . . . . 1 . . . . . . . . . 2 . . . . . . . . . formatsys_high 25 | . . . . . 1 . . . . . . 4 . 8 . 8 . . 3 . . 1 . . Relay Couplers Released 122 | . . . . 20 . 14 . 3 . 8 . 28 . 15 . 19 . . 9 . . 3 . 3 Machine Destruction 116 | . . . . 20 . 11 . 3 . 8 . 28 . 15 . 16 . . 9 . . 3 . 3 Programmers 6 | . . . . . . 3 . . . . . . . . . 3 . . . . . . . . Attached 32 | . . . . . 5 1 . . . . 1 6 . 3 . 6 1 . 3 2 . 1 . 3 Merged Code Value 276 | . . . . . . . . . . . 28 100 . 47 . 47 . . 44 . . 10 . . Fabnet Peak Effective % . | . . . . . . . . . . . . . . . . . . . . . . . . . Robots Rewired 8 | . . . . 5 . . . . . 3 . . . . . . . . . . . . . . Allies Hacked 6 | . . . . . . . . . . . . . . . . 3 1 . . . . . 2 . Hacks Repelled . | . . . . . . . . . . . . . . . . . . . . . . . . . Allies | -11 -10 -9 -8 -8 -8 -8 -8 -8 -7 -7 -7 -7 -6 -6 -6 -6 -5 -4 -4 -4 -3 -3 -3 -3 -------- Run | Yrd Mat Mat Mat Gar Mat Gar Mat Gar Fac Gar Fac Gar Fac Gar Fac Gar Fac Fac Gar Fac Res Gar Res Gar Total Allies 59 | . . . . 5 2 . . . . 4 . 10 . 11 2 12 2 . 8 . . 2 1 . Largest Group 9 | . . . . 5 4 1 . . . 4 . 5 1 9 7 7 7 . 2 1 . 2 1 . Highest-Rated Group 280 | . . . . 134 166 90 . . . 73 . 128 32 280 228 228 171 . 105 49 . 112 64 . Highest-Rated Ally 90 | . . . . 31 90 90 . . . 25 . 32 32 47 47 47 41 . 58 49 . 56 64 . Total Orders 30 | . . . . . 5 . . . . . . . . . 1 20 4 . . . . . . . STAY 9 | . . . . . 3 . . . . . . . . . . 5 1 . . . . . . . FOLLOW 10 | . . . . . 1 . . . . . . . . . . 8 1 . . . . . . . AID 8 | . . . . . 1 . . . . . . . . . 1 4 2 . . . . . . . DROP 1 | . . . . . . . . . . . . . . . . 1 . . . . . . . . PICKUP 2 | . . . . . . . . . . . . . . . . 2 . . . . . . . . Ally Attacks 392 | . . . . 7 34 13 . . . 62 . 30 . 63 2 70 60 . 15 11 . 15 10 . Total Damage 8902 | . . . . 122 948 667 . . . 870 . 812 . 1271 53 1321 1368 . 516 169 . 481 304 . Kills 74 | . . . . 2 8 5 . . . 9 . 8 . 13 1 12 13 . 2 . . 1 . . Allies Corrupted 1 | . . . . . . . . . . . . . . . . . . . 1 . . . . . Allies Melted . | . . . . . . . . . . . . . . . . . . . . . . . . . Intel | -11 -10 -9 -8 -8 -8 -8 -8 -8 -7 -7 -7 -7 -6 -6 -6 -6 -5 -4 -4 -4 -3 -3 -3 -3 ------- Run | Yrd Mat Mat Mat Gar Mat Gar Mat Gar Fac Gar Fac Gar Fac Gar Fac Gar Fac Fac Gar Fac Res Gar Res Gar Robot Analysis Total 5 | . 1 3 . . 1 . . . . . . . . . . . . . . . . . . . Derelict Logs Recovered . | . . . . . . . . . . . . . . . . . . . . . . . . . Drone Launches . | . . . . . . . . . . . . . . . . . . . . . . . . . Drone Recoveries . | . . . . . . . . . . . . . . . . . . . . . . . . . Exploration | -11 -10 -9 -8 -8 -8 -8 -8 -8 -7 -7 -7 -7 -6 -6 -6 -6 -5 -4 -4 -4 -3 -3 -3 -3 ------------- Run | Yrd Mat Mat Mat Gar Mat Gar Mat Gar Fac Gar Fac Gar Fac Gar Fac Gar Fac Fac Gar Fac Res Gar Res Gar Turns Passed 28243 | 103 478 1744 1030 1996 1485 1940 852 507 1738 2367 2006 1892 525 1619 471 1267 1074 47 942 1326 978 1368 243 245 Spaces Moved 9961 | 60 156 553 342 652 489 631 267 187 587 653 749 586 211 595 192 612 525 24 285 422 338 543 133 169 Core 48 | 2 . . . . . . . . . 1 . . . . . . . . . . . 13 . 32 Treads 9523 | 58 156 553 342 652 489 631 267 187 587 652 749 442 211 595 192 612 525 24 285 422 338 401 133 20 Legs 273 | . . . . . . . . . . . . 144 . . . . . . . . . 129 . . Wheels . | . . . . . . . . . . . . . . . . . . . . . . . . . Hover 117 | . . . . . . . . . . . . . . . . . . . . . . . . 117 Flight . | . . . . . . . . . . . . . . . . . . . . . . . . . Fastest Speed 50 | 50 160 240 235 232 232 240 243 243 160 240 236 235 235 235 236 160 160 160 160 242 243 100 152 50 Average Speed 233 | 156 267 240 238 232 237 262 243 247 252 317 239 292 235 246 236 160 160 160 209 245 243 183 153 92 Slowest Speed 1950 | 160 320 240 240 235 240 560 243 323 320 1950 320 465 235 312 236 240 160 160 246 247 246 246 232 257 Overloaded Moves . | . . . . . . . . . . . . . . . . . . . . . . . . . Propulsion Burnouts . | . . . . . . . . . . . . . . . . . . . . . . . . . Robots Hopped . | . . . . . . . . . . . . . . . . . . . . . . . . . Cave-ins Triggered . | . . . . . . . . . . . . . . . . . . . . . . . . . Exploration Rate (%) 35 | 4 37 42 39 87 49 61 36 33 17 67 23 77 7 70 7 66 17 1 44 14 11 41 7 39 Regions Visited 24 Branch Regions . Pre-discovered Areas . | . . . . . . . . . . . . . . . . . . . . . . . . . Known Exits Taken 10 | . . . 1 . 1 . 1 . 1 . 1 . 1 . 1 . . 1 . . 1 . 1 . Unknown Exits Taken 5 | 1 1 1 . . . . . . . . . . . . . . 1 . . 1 . . . . Scrap Searched . | . . . . . . . . . . . . . . . . . . . . . . . . . Spaces Dug 116 | . . . . . . . 3 . . . 1 . . . . . . . . . . 22 . 90 Terrain Destroyed 503 | . . 6 27 3 43 16 21 1 1 . 7 6 . . 1 1 29 . 17 43 4 132 2 143 Melee . | . . . . . . . . . . . . . . . . . . . . . . . . . Projectile 139 | . . . . 3 43 16 21 1 1 . 7 . . . 1 1 5 . 7 7 4 17 2 3 AOE 363 | . . 6 27 . . . . . . . . 6 . . . . 24 . 9 36 . 115 . 140 Terrain Rammed . | . . . . . . . . . . . . . . . . . . . . . . . . . Walls Destroyed . | . . . . . . . . . . . . . . . . . . . . . . . . . Machines Disabled . | . . . . . . . . . . . . . . . . . . . . . . . . . Actions | -11 -10 -9 -8 -8 -8 -8 -8 -8 -7 -7 -7 -7 -6 -6 -6 -6 -5 -4 -4 -4 -3 -3 -3 -3 --------- Run | Yrd Mat Mat Mat Gar Mat Gar Mat Gar Fac Gar Fac Gar Fac Gar Fac Gar Fac Fac Gar Fac Res Gar Res Gar Total 13117 | 66 186 817 430 984 665 768 413 205 777 811 887 697 233 692 205 815 675 35 496 578 494 818 158 212 Wait 1006 | . 4 90 . 168 30 7 101 . 113 25 45 4 1 31 5 97 59 . 58 27 50 91 . . Move 9946 | 59 155 552 342 651 489 630 267 186 587 652 749 585 210 594 192 611 524 24 284 421 338 542 133 169 Hop . | . . . . . . . . . . . . . . . . . . . . . . . . . Pick Up 269 | 1 9 43 12 18 18 15 4 3 12 9 14 12 5 5 . 10 16 3 22 16 14 6 2 . Fast Attach 102 | 6 1 3 . 3 1 2 . . 2 6 6 9 1 2 1 2 2 . 10 4 7 21 6 7 Attach 133 | . . 2 4 7 11 12 . 3 6 9 2 3 2 3 . 5 5 2 15 18 6 15 . 3 Detach 12 | . . . . 1 2 1 . . 2 1 . . . . . . . . 1 . . 2 . 2 Swap 133 | . 1 9 2 6 15 6 5 1 7 1 9 9 3 5 . 12 7 2 8 5 7 7 3 3 Drop 205 | . . 30 11 17 11 5 6 . 13 2 21 11 4 2 1 11 13 4 10 1 14 11 5 2 Fire 1142 | . 16 88 58 86 65 77 26 12 33 62 36 41 3 46 5 66 47 . 86 83 58 116 6 26 Melee 31 | . . . . 7 22 . 2 . . . . . . . . . . . . . . . . . Ram . | . . . . . . . . . . . . . . . . . . . . . . . . . Kick . | . . . . . . . . . . . . . . . . . . . . . . . . . Crush 17 | . . . 1 . 1 . 2 . 2 . 5 . 2 . . . 2 . . 1 . 1 . . Escape Stasis 80 | . . . . 20 . 13 . . . 8 . 23 2 4 . . . . 2 2 . 6 . . Rewire 41 | . . . . . . . . . . 36 . . . . 1 1 . . . . . . 3 . Trap . | . . . . . . . . . . . . . . . . . . . . . . . . . Miscellaneous . | . . . . . . . . . . . . . . . . . . . . . . . . . Route ------- -11/Scrapyard -10/Materials (discovered 2 exits: *Mat / [*Min]) -9/Materials (discovered 2 exits: *Mat / [*Min]) -8/Materials (discovered 2 exits: *Fac / Gar) -8/Garrison (discovered 4 exits: *Mat x4) -8/Materials (discovered 2 exits: *Fac / Gar) -8/Garrison (discovered 3 exits: *Fac x2 / *Mat) -8/Materials -8/Garrison -7/Factory (discovered 4 exits: Sto / Low x2 / Gar) -7/Garrison (discovered 3 exits: *Fac x2 / *Fac) -7/Factory (discovered 3 exits: *Fac / *Low / Gar) -7/Garrison (discovered 3 exits: *Fac x3) -6/Factory -6/Garrison (discovered 3 exits: *Fac x3) -6/Factory -6/Garrison (discovered 3 exits: *Fac x3) -5/Factory -4/Factory -4/Garrison -4/Factory -3/Research -3/Garrison -3/Research -3/Garrison History --------- Turn | Location | Event 15 | -11/Scrapyard | Discovered new exit (range 15) 104 | -11/Scrapyard | Entered Materials 230 | -10/Materials | Discovered new exit (range 7) 253 | -10/Materials | Central database locked down 300 | -10/Materials | Build established: Mutant 507 | -10/Materials | Discovered new exit (range 16) 582 | -10/Materials | Entered another Materials area 582 | -9/Materials | Evolved 2 slots: Propulsion x1, Utility x1 1011 | -9/Materials | Destroyed 8 combat bots 1503 | -9/Materials | Discovered new exit (range 16) 1516 | -9/Materials | Build established: Hacker-Mutant 1720 | -9/Materials | Discovered new exit (range 4) 2233 | -9/Materials | Central database locked down 2326 | -9/Materials | Entered another Materials area 2326 | -8/Materials | Evolved 2 slots: Utility x1, Weapon x1 2610 | -8/Materials | Build established: Hacker-Tank 2725 | -8/Materials | Discovered new exit (range 5) 3054 | -8/Materials | Central database locked down 3356 | -8/Materials | Identified exit to Garrison 3356 | -8/Materials | Entered Garrison 3377 | -8/Garrison | Build established: Tank 3482 | -8/Garrison | Garrison Relay disabled 3529 | -8/Garrison | Garrison Relay disabled 3692 | -8/Garrison | Triggered checkpoint 3737 | -8/Garrison | Triggered checkpoint 3739 | -8/Garrison | Triggered checkpoint 3742 | -8/Garrison | Triggered checkpoint 3844 | -8/Garrison | Triggered checkpoint 3916 | -8/Garrison | Installed Relay Interface Framework 3986 | -8/Garrison | Garrison Relay disabled 4018 | -8/Garrison | Triggered checkpoint 4105 | -8/Garrison | Discovered new exit (range 12) 4412 | -8/Garrison | Triggered checkpoint 4469 | -8/Garrison | Garrison Relay disabled 4476 | -8/Garrison | Destroyed 8 combat bots 4724 | -8/Garrison | Discovered new exit (range 10) 4869 | -8/Garrison | Build established: Bothacker-Tank 4972 | -8/Garrison | Triggered checkpoint 5021 | -8/Garrison | Garrison Relay disabled 5040 | -8/Garrison | Triggered checkpoint 5082 | -8/Garrison | Discovered new exit (range 5) 5214 | -8/Garrison | Discovered new exit (range 11) 5352 | -8/Garrison | Entered Materials 5352 | -8/Materials | Accompanied by 3 allies 5752 | -8/Materials | First assault squad dispatched 6081 | -8/Materials | Discovered new exit (range 3) 6447 | -8/Materials | Build established: Commander-Tank 6518 | -8/Materials | Garrison activated, responded to threat 6837 | -8/Materials | Identified exit to Garrison 6837 | -8/Materials | Entered Garrison 6837 | -8/Garrison | Accompanied by 1 ally 6865 | -8/Garrison | Triggered checkpoint 6900 | -8/Garrison | Garrison Relay disabled 6961 | -8/Garrison | Build established: Scavenger-Tank 7015 | -8/Garrison | Triggered checkpoint 7211 | -8/Garrison | Discovered new exit (range 5) 7237 | -8/Garrison | Core integrity fell below 50% 7440 | -8/Garrison | Destroyed 11 combat bots 7461 | -8/Garrison | Lost 7 parts (1p2n2u2w) 7511 | -8/Garrison | Triggered checkpoint 7869 | -8/Garrison | Triggered checkpoint 7887 | -8/Garrison | Core integrity fell below 20% 7938 | -8/Garrison | Garrison Relay disabled 8108 | -8/Garrison | Learned Factory security intel 8139 | -8/Garrison | Discovered new exit (range 10) 8254 | -8/Garrison | Build established: Bothacker-Gunner 8305 | -8/Garrison | Triggered checkpoint 8371 | -8/Garrison | Expanded RIF knowledge: Alert ID Control 8419 | -8/Garrison | Triggered checkpoint 8488 | -8/Garrison | Garrison Relay disabled 8521 | -8/Garrison | Triggered checkpoint 8549 | -8/Garrison | Expanded RIF knowledge: Threat Obfuscation 8607 | -8/Garrison | Discovered new exit (range 8) 8777 | -8/Garrison | Entered Materials 8966 | -8/Materials | Repaired Broken Imp. Heavy Treads 9629 | -8/Materials | Identified exit to Garrison 9629 | -8/Materials | Entered Garrison 9741 | -8/Garrison | Triggered checkpoint 9862 | -8/Garrison | Discovered new exit (range 9) 10023 | -8/Garrison | Triggered checkpoint 10042 | -8/Garrison | Build established: Bothacker-Tank 10045 | -8/Garrison | Garrison Relay disabled 10136 | -8/Garrison | Entered Factory 10136 | -7/Factory | Evolved 2 slots: Propulsion x1, Utility x1 10661 | -7/Factory | Identified exit to Storage 10661 | -7/Factory | Identified exit to Lower Caves 11006 | -7/Factory | Build established: Bothacker-Gunner 11358 | -7/Factory | Fabricated Imp. Propulsion Shielding (x2) 11806 | -7/Factory | Garrison activated, responded to threat 11874 | -7/Factory | Identified exit to Garrison 11874 | -7/Factory | Entered Garrison 11984 | -7/Garrison | Triggered checkpoint 12009 | -7/Garrison | Garrison Relay disabled 12130 | -7/Garrison | Triggered checkpoint 12362 | -7/Garrison | Destroyed 8 combat bots 12400 | -7/Garrison | Triggered checkpoint 12592 | -7/Garrison | Triggered checkpoint 12727 | -7/Garrison | Rescued a captive Derelict 12914 | -7/Garrison | Discovered new exit (range 12) 12982 | -7/Garrison | Triggered checkpoint 13062 | -7/Garrison | Discovered new exit (range 5) 13262 | -7/Garrison | Triggered checkpoint 13292 | -7/Garrison | Build established: Bothacker-Tank 13300 | -7/Garrison | Lost 3 parts (1p2u) 13351 | -7/Garrison | Lost 3 allies 13503 | -7/Garrison | Discovered new exit (range 10) 13528 | -7/Garrison | Triggered checkpoint 13569 | -7/Garrison | Garrison Relay disabled 13778 | -7/Garrison | Triggered checkpoint 13963 | -7/Garrison | Expanded RIF knowledge: Code Merge 14241 | -7/Garrison | Entered Factory 14251 | -7/Factory | Build established: Botlord-Tank 14688 | -7/Factory | Discovered exit to Lower Caves (range 15) 15774 | -7/Factory | Discovered new exit (range 10) 16247 | -7/Factory | Identified exit to Garrison 16247 | -7/Factory | Entered Garrison 16390 | -7/Garrison | Build established: Bothacker-Tank 16443 | -7/Garrison | Expanded RIF knowledge: Command Fork 16487 | -7/Garrison | Triggered checkpoint 16631 | -7/Garrison | Triggered checkpoint 16697 | -7/Garrison | Garrison Relay disabled 16776 | -7/Garrison | Discovered new exit (range 14) 16837 | -7/Garrison | Build established: Botlord-Gunner 17033 | -7/Garrison | Triggered checkpoint 17050 | -7/Garrison | Core integrity fell below 50% 17227 | -7/Garrison | Triggered checkpoint 17245 | -7/Garrison | Garrison Relay disabled 17383 | -7/Garrison | Triggered checkpoint 17391 | -7/Garrison | Discovered new exit (range 14) 17581 | -7/Garrison | Triggered checkpoint 17625 | -7/Garrison | Triggered checkpoint 17728 | -7/Garrison | Discovered new exit (range 8) 17869 | -7/Garrison | Triggered checkpoint 17931 | -7/Garrison | Garrison Relay disabled 17937 | -7/Garrison | Garrison Relay disabled 17937 | -7/Garrison | Garrison Relay disabled 17940 | -7/Garrison | Garrison Relay disabled 17943 | -7/Garrison | Lost 4 allies 18027 | -7/Garrison | Garrison Relay disabled 18139 | -7/Garrison | Entered Factory 18139 | -6/Factory | Accompanied by 1 ally 18139 | -6/Factory | Evolved 2 slots: Utility x2 18639 | -6/Factory | Build established: Botlord-Tank 18662 | -6/Factory | Identified exit to Garrison 18664 | -6/Factory | Entered Garrison 18892 | -6/Garrison | Garrison Relay disabled 19036 | -6/Garrison | Triggered checkpoint 19072 | -6/Garrison | Triggered checkpoint 19175 | -6/Garrison | Discovered new exit (range 15) 19198 | -6/Garrison | Expanded RIF knowledge: Hotswap 19232 | -6/Garrison | Triggered checkpoint 19266 | -6/Garrison | Garrison Relay disabled 19326 | -6/Garrison | Rescued a captive Derelict 19331 | -6/Garrison | Rescued a captive Derelict 19450 | -6/Garrison | Triggered checkpoint 19504 | -6/Garrison | Triggered checkpoint 19538 | -6/Garrison | Garrison Relay disabled 19584 | -6/Garrison | Discovered new exit (range 14) 19618 | -6/Garrison | Build established: Botlord-Gunner 19806 | -6/Garrison | Discovered new exit (range 12) 19855 | -6/Garrison | Lost 3 allies 19900 | -6/Garrison | Garrison Relay disabled 20283 | -6/Garrison | Entered Factory 20283 | -6/Factory | Accompanied by 5 allies 20754 | -6/Factory | Identified exit to Garrison 20754 | -6/Factory | Entered Garrison 20754 | -6/Garrison | Accompanied by 7 allies 20833 | -6/Garrison | Lost 4 allies 20840 | -6/Garrison | Triggered checkpoint 20875 | -6/Garrison | Heavy support dispatched to Factory 20946 | -6/Garrison | Garrison Relay disabled 21123 | -6/Garrison | Lost 6 allies 21219 | -6/Garrison | Lost 3 parts (3u) 21286 | -6/Garrison | Triggered checkpoint 21384 | -6/Garrison | Discovered new exit (range 12) 21472 | -6/Garrison | Triggered checkpoint 21500 | -6/Garrison | Garrison Relay disabled 21616 | -6/Garrison | Build established: Botlord-Tank 21622 | -6/Garrison | Triggered checkpoint 21668 | -6/Garrison | Garrison Relay disabled 21713 | -6/Garrison | Discovered new exit (range 10) 21846 | -6/Garrison | Discovered new exit (range 14) 21900 | -6/Garrison | Expanded RIF knowledge: Autoassimilate 21934 | -6/Garrison | Triggered checkpoint 21955 | -6/Garrison | Garrison Relay disabled 22021 | -6/Garrison | Entered Factory 22021 | -5/Factory | Accompanied by 6 allies 22021 | -5/Factory | Evolved 2 slots: Power x1, Utility x1 22839 | -5/Factory | Spotted B-75 Beast 22903 | -5/Factory | Allies destroyed B-75 Beast 23024 | -5/Factory | Discovered new exit (range 15) 23095 | -5/Factory | Entered another Factory area 23095 | -4/Factory | Evolved 2 slots: Utility x2 23140 | -4/Factory | Identified exit to Garrison 23142 | -4/Factory | Entered Garrison 23220 | -4/Garrison | Triggered checkpoint 23264 | -4/Garrison | Lost 3 parts (1n1u1w) 23271 | -4/Garrison | Expanded RIF knowledge: Command Fork 23287 | -4/Garrison | Garrison Relay disabled 23452 | -4/Garrison | Triggered checkpoint 23455 | -4/Garrison | Triggered checkpoint 23455 | -4/Garrison | Triggered checkpoint 23459 | -4/Garrison | Triggered checkpoint 23501 | -4/Garrison | Lost 4 allies 23645 | -4/Garrison | Lost 7 parts (1p4u2w) 23794 | -4/Garrison | Triggered checkpoint 23820 | -4/Garrison | Garrison Relay disabled 23950 | -4/Garrison | Found Relay Coupler [Proto] 23954 | -4/Garrison | Found Relay Coupler [Proto] 23959 | -4/Garrison | Found Relay Coupler [Proto] 23963 | -4/Garrison | Found Relay Coupler [Proto] 24057 | -4/Garrison | Discovered new exit (range 10) 24084 | -4/Garrison | Entered Factory 24084 | -4/Factory | Accompanied by 1 ally 24282 | -4/Factory | Lost 3 parts (1p1u1w) 24673 | -4/Factory | Lost 11 parts (2p3n4u2w) 24830 | -4/Factory | Found Quantum Capacitor 25220 | -4/Factory | Cargo convoy interrupted 25310 | -4/Factory | Discovered new exit (range 15) 25389 | -4/Factory | Lost 4 parts (3n1u) 25410 | -4/Factory | Entered Research 25410 | -3/Research | Evolved 2 slots: Utility x2 25643 | -3/Research | Build established: Botlord-Gunner 25901 | -3/Research | Found Prototype Processor 25901 | -3/Research | Identified Spectral Analyzer 25905 | -3/Research | Found Spectral Analyzer 26156 | -3/Research | Lost 3 parts (1p2w) 26179 | -3/Research | Spotted B-86 Titan 26388 | -3/Research | Identified exit to Garrison 26388 | -3/Research | Entered Garrison 26412 | -3/Garrison | Triggered checkpoint 26473 | -3/Garrison | Garrison Relay disabled 26640 | -3/Garrison | Triggered checkpoint 26642 | -3/Garrison | Spotted B-86 Titan 26799 | -3/Garrison | Triggered checkpoint 26807 | -3/Garrison | Triggered checkpoint 26859 | -3/Garrison | Destroyed B-86 Titan 26904 | -3/Garrison | Lost 16 parts (2p4n7u3w) 27043 | -3/Garrison | System corruption reached 10% 27073 | -3/Garrison | Lost 7 parts (2n1u4w) 27286 | -3/Garrison | Build established: Mutant 27738 | -3/Garrison | Discovered new exit (range 12) 27756 | -3/Garrison | Entered Research 27907 | -3/Research | Found Prototype Processor 27907 | -3/Research | Identified Exp. Signal Interpreter 27966 | -3/Research | Found Prototype Launcher 27966 | -3/Research | Identified Tactical Quantum Warhead 27972 | -3/Research | Spotted B-86 Titan 27976 | -3/Research | Garrison activated, responded to threat 27999 | -3/Research | Identified exit to Garrison 27999 | -3/Research | Entered Garrison 28031 | -3/Garrison | Triggered checkpoint 28049 | -3/Garrison | Core integrity fell below 50% 28100 | -3/Garrison | Lost 4 parts (2n2u) 28102 | -3/Garrison | Garrison Relay disabled 28134 | -3/Garrison | Expanded RIF knowledge: Code Merge 28213 | -3/Garrison | Spotted B-86 Titan 28217 | -3/Garrison | Core integrity fell below 20% 28229 | -3/Garrison | Triggered checkpoint 28231 | -3/Garrison | Destroyed 7 combat bots 28239 | -3/Garrison | Triggered checkpoint 28244 | -3/Garrison | Destroyed by S-43 Plague with Heavy Machine Gun Last Messages --------------- 28225_ The unstable cave ceiling collapses. 28226_ Knocked back. 28226_ Penetrated by Slug. 28226_ Adv. Heat Sink destroyed. 28226_ Authchip [Propulsion] destroyed. 28229_ Garrison Door breached. 28229_ Beams of light sweep through the air. An alarm sounds. 28230_ Relay Coupler [Sentry] destroyed. 28231_ Slug penetrates Wall. 28235_ Slug penetrates G-67 Veteran. 28238_ Adv. Heat Sink destroyed. 28239_ Beams of light sweep through the air. An alarm sounds. 28239_ Destroyed Imp. Phase Shifter. 28240_ Tactical Quantum Warhead destroyed. 28240_ Relay Coupler [Specialist] destroyed. 28242_ Penetrated by Slug. 28242_ Relay Coupler [Brawler] destroyed. 28242_ Slug penetrates Wall. Map ----- +----------------------------------------------------+ | ?#"""" ##### #????##### % # #? #????? | | ?#" ###??# =% # # ## #????? | | ?#""""^##### #"#??# %! ###### | | ?#######???# "#??# * | | ???????????# #??## # % # | | ???????????# "#???# # ## #????? | | ???????????# #"#???# ### ### ## #????? | | ???????????#####???????# ## "????? | | ???????????????????????##### "????? | | ???????????????????????????# "????? | | ???????????????????????????# "????? | | ???????????????????????????### ## ## #????? | | ?????????????????????????????# ## ## ###### | | ?????????????????????????????# | | ?????????????????????????????# | | ?????????????????????????????# ###### | | ?????????????????????????????# ##""""## ##????? | | ?????????????????????????????# #??????? #?????? | | ?????????????????????????????# #???????? #?????? | | ?????????????????????????????# #?????????#?????? | | ?????????????????????????????# #???????????????? | | ?????????????????????????????# #???????????????? | | ?????????????##??????????????# #???????????????? | | ??? # # ##++####### #???????????????? | | ?? s s s #???????????????? | | ?? h s s @ #???????????????? | | ?? h ss #???????????????? | | ??? ## ###########???????????????? | | ?????# ?????# ???????????????????????????? | | ?????### ?????????#????????????????????????????? | | ?????????????????????????????????????????????????? | | ?????????????????????????????????????????????????? | | ?????????????????????????????????????????????????? | | ?????????????????????????????????????????????????? | | ?????????????????????????????????????????????????? | | ?????????????????????????????????????????????????? | | ?????????????????????????????????????????????????? | | ?????????????????????????????????????????????????? | | ?????????????????????????????????????????????????? | | ?????????????????????????????????????????????????? | | ?????????????????????????????????????????????????? | | ?????????????????????????????????????????????????? | | ?????????????????????????????????????????????????? | | ?????????????????????????????????????????????????? | | ?????????????????????????????????????????????????? | | ?????????????????????????????????????????????????? | | ?????????????????????????????????????????????????? | | ?????????????????????????????????????????????????? | | ?????????????????????????????????????????????????? | | ?????????????????????????????????????????????????? | +----------------------------------------------------+ Best States ------------- Heat Dissipation 122 Coolant Potential 65 Energy Generation 55 Energy Capacity 600 Matter Stores 300 Matter Capacity 300 Sight Range 24 Terrain Scan Density 10 Jamming Range 14 EM Shielding 4 Armor Coverage 1200 Resistance: TH 25 Resistance: EM 25 Core Shielding 20 Propulsion Shielding 66 Weapon Shielding 66 Weapon Cycling 20 Phase Shifting 5 Evasion (%) 55 Targeting Accuracy 8 Armor Integrity Analysis 30 Recoil Reduction 4 Particle Charging 20 Salvage Targeting 3 Offensive Hacking 20 Relay Coupler Types 5 Relay Coupler Value 235 Authchip Count 1 Item Schematics ----------------- Hacking Suite | -9/Materials | Scanalyzed Hvy. Ion Engine | -9/Materials | Scanalyzed Grenade Launcher | -9/Materials | Scanalyzed Arm. Treads | -8/Materials | Hacked Rnf. Ion Engine | -8/Materials | Hacked Imp. Light Armor Plating | -8/Materials | Scanalyzed Med. Armor Plating | -8/Materials | Hacked Imp. Propulsion Shielding | -8/Materials | Hacked Adv. Terrain Scanner | -7/Factory | Hacked Imp. Heavy Treads | -7/Factory | Scanalyzed Robot Schematics ------------------ M-28 Smith | -8/Materials | Hacked Fabricated ------------ Imp. Propulsion Shielding | x2 | -7/Factory Alien Tech Used ----------------- None Achievements -------------- None Challenges ------------ None Game ------ Seed StasisRestorationMediator Manual? 0 Play Time 03:10:28 Cumulative 342.3 hours Start 2024.05.09 @ 18:23:52 End 2024.05.09 @ 23:11:12 Sessions 1 Manual Loads 0 Difficulty Rogue Special Mode None Game No. 252 Rogue 252 Adventurer 0 Explorer 0 Win Type - Total 12 Types 8/0/3/1/0/0/0/0/0 Lore% 80 Gallery% 88 Achievement% 75 Wizard Run 0 Options --------- Layout 2 ASCII 1 Keyboard 0 Movement Mouse Keybinds 0 Fullscreen 2 Font 24/Smallcaps Map View 50x44 Zoom Use 0% Tactical HUD 1 Map Filters NONE Filters NONE Steam 1 RUN: d34501a2-6821-4c24-a35e-463da2dfc620